[Event "Titled Tuesday Blitz January 31 Late 2023"]
[White "Carlsen, Magnus"]
[Black "Poltorak, Sebastian"]
[WhiteFideId "1503014"]
[BlackFideId "1199498"]
[WhiteElo "2853"]
[BlackElo "2354"]
[Result "1-0"]
[Round "01"]
[TimeControl "180+2"]
[Date "2023.01.31"]
[WhiteClock "0:00:11"]
[BlackClock "0:00:02"]

1. d4 {[%clk 0:02:59]}  Nf6 {[%clk 0:02:59]} 2. c4 {[%clk 0:02:59]}  g6 {[%clk 0:02:59]} 3. Nc3 {[%clk 0:02:57]}  d5 {[%clk 0:02:59]} 4. cxd5 {[%clk 0:02:56]}  Nxd5 {[%clk 0:03:00]} 5. e4 {[%clk 0:02:55]}  Nxc3 {[%clk 0:03:00]} 6. bxc3 {[%clk 0:02:56]}  Bg7 {[%clk 0:03:00]} 7. Qa4+ {[%clk 0:02:57]}  Nd7 {[%clk 0:02:58]} 8. Nf3 {[%clk 0:02:55]}  O-O {[%clk 0:02:58]} 9. Bg5 {[%clk 0:02:55]}  Nb6 {[%clk 0:02:33]} 10. Qa3 {[%clk 0:02:54]}  Re8 {[%clk 0:02:32]} 11. Be2 {[%clk 0:02:48]}  Bg4 {[%clk 0:02:32]} 12. O-O {[%clk 0:02:46]}  h6 {[%clk 0:02:31]} 13. Bh4 {[%clk 0:02:46]}  Qd7 {[%clk 0:02:14]} 14. Rfd1 {[%clk 0:02:44]}  c6 {[%clk 0:02:09]} 15. Ne5 {[%clk 0:02:31]}  Bxe5 {[%clk 0:02:07]} 16. dxe5 {[%clk 0:02:32]}  Qe6 {[%clk 0:02:01]} 17. f3 {[%clk 0:02:27]}  Bh5 {[%clk 0:01:56]} 18. Qa5 {[%clk 0:02:21]}  g5 {[%clk 0:01:36]} 19. Bf2 {[%clk 0:02:20]}  Nc4 {[%clk 0:01:32]} 20. Bxc4 {[%clk 0:02:10]}  Qxc4 {[%clk 0:01:33]} 21. h3 {[%clk 0:02:05]}  b6 {[%clk 0:01:29]} 22. Qb4 {[%clk 0:02:02]}  Qe6 {[%clk 0:01:26]} 23. g4 {[%clk 0:01:57]}  Bg6 {[%clk 0:01:25]} 24. Bg3 {[%clk 0:01:57]}  Red8 {[%clk 0:01:20]} 25. Kf2 {[%clk 0:01:53]}  f6 {[%clk 0:01:13]} 26. Qb3 {[%clk 0:01:45]}  Bf7 {[%clk 0:01:13]} 27. Qxe6 {[%clk 0:01:41]}  Bxe6 {[%clk 0:01:14]} 28. exf6 {[%clk 0:01:41]}  exf6 {[%clk 0:01:15]} 29. a4 {[%clk 0:01:41]}  Bb3 {[%clk 0:01:05]} 30. Rd6 {[%clk 0:01:30]}  Rxd6 {[%clk 0:01:04]} 31. Bxd6 {[%clk 0:01:29]}  a6 {[%clk 0:00:56]} 32. a5 {[%clk 0:01:28]}  b5 {[%clk 0:00:52]} 33. Rb1 {[%clk 0:01:25]}  Bc4 {[%clk 0:00:49]} 34. h4 {[%clk 0:01:08]}  Rd8 {[%clk 0:00:49]} 35. Bc5 {[%clk 0:01:07]}  Rd2+ {[%clk 0:00:46]} 36. Kg3 {[%clk 0:01:07]}  Kg7 {[%clk 0:00:42]} 37. Rh1 {[%clk 0:01:06]}  Be2 {[%clk 0:00:33]} 38. Rh2 {[%clk 0:00:59]}  Rc2 {[%clk 0:00:30]} 39. hxg5 {[%clk 0:00:51]}  hxg5 {[%clk 0:00:31]} 40. Bd4 {[%clk 0:00:51]}  Bd3 {[%clk 0:00:29]} 41. Rh1 {[%clk 0:00:51]}  Rd2 {[%clk 0:00:26]} 42. e5 {[%clk 0:00:51]}  fxe5 {[%clk 0:00:20]} 43. Bxe5+ {[%clk 0:00:51]}  Kg6 {[%clk 0:00:18]} 44. Rh8 {[%clk 0:00:51]}  Bc4 {[%clk 0:00:16]} 45. Rf8 {[%clk 0:00:45]}  Rd3 {[%clk 0:00:13]} 46. Rf6+ {[%clk 0:00:44]}  Kh7 {[%clk 0:00:14]} 47. Kf2 {[%clk 0:00:39]}  Rd5 {[%clk 0:00:09]} 48. Bd4 {[%clk 0:00:36]}  c5 {[%clk 0:00:09]} 49. Be3 {[%clk 0:00:31]}  b4 {[%clk 0:00:09]} 50. cxb4 {[%clk 0:00:24]}  cxb4 {[%clk 0:00:10]} 51. Rc6 {[%clk 0:00:24]}  Bb5 {[%clk 0:00:10]} 52. Rc2 {[%clk 0:00:22]}  b3 {[%clk 0:00:10]} 53. Rb2 {[%clk 0:00:20]}  Bc4 {[%clk 0:00:11]} 54. Rb1 {[%clk 0:00:18]}  Rd3 {[%clk 0:00:09]} 55. Bxg5 {[%clk 0:00:18]}  Kg6 {[%clk 0:00:09]} 56. Be3 {[%clk 0:00:17]}  Rc3 {[%clk 0:00:08]} 57. Bd4 {[%clk 0:00:16]}  Rc2+ {[%clk 0:00:07]} 58. Kg3 {[%clk 0:00:17]}  Rd2 {[%clk 0:00:06]} 59. Be5 {[%clk 0:00:16]}  Re2 {[%clk 0:00:03]} 60. f4 {[%clk 0:00:16]}  Kf7 {[%clk 0:00:02]} 61. Kh4 {[%clk 0:00:15]}  Rh2+ {[%clk 0:00:01]} 62. Kg5 {[%clk 0:00:15]}  Re2 {[%clk 0:00:02]} 63. Ba1 {[%clk 0:00:12]}  Ke6 {[%clk 0:00:01]} 64. f5+ {[%clk 0:00:13]}  Kd5 {[%clk 0:00:02]} 65. f6 {[%clk 0:00:13]}  Rf2 {[%clk 0:00:02]} 66. Rd1+ {[%clk 0:00:12]}  Ke6 {[%clk 0:00:02]} 67. Bd4 {[%clk 0:00:11]}  b2 {[%clk 0:00:02]} 68. Bxf2 {[%clk 0:00:11]} 1-0


[Site "https://www.chess.com"]

[Event "Titled Tuesday Blitz January 31 Late 2023"]
[White "ArchibaldCerveza29"]
[Black "So, Wesley"]
[BlackFideId "5202213"]
[WhiteElo "2532"]
[BlackElo "2760"]
[Result "0-1"]
[Round "01"]
[TimeControl "180+2"]
[Date "2023.01.31"]
[WhiteClock "0:00:20"]
[BlackClock "0:00:32"]

1. d4 {[%clk 0:02:52]}  Nf6 {[%clk 0:02:59]} 2. c4 {[%clk 0:02:50]}  e6 {[%clk 0:02:59]} 3. Nc3 {[%clk 0:02:50]}  Bb4 {[%clk 0:02:59]} 4. e3 {[%clk 0:02:51]}  O-O {[%clk 0:02:57]} 5. Bd3 {[%clk 0:02:50]}  d5 {[%clk 0:02:49]} 6. Ne2 {[%clk 0:02:48]}  dxc4 {[%clk 0:02:48]} 7. Bxc4 {[%clk 0:02:49]}  c5 {[%clk 0:02:49]} 8. O-O {[%clk 0:02:47]}  cxd4 {[%clk 0:02:49]} 9. Qxd4 {[%clk 0:02:29]}  Nc6 {[%clk 0:02:48]} 10. Qh4 {[%clk 0:02:28]}  Be7 {[%clk 0:02:40]} 11. Rd1 {[%clk 0:02:25]}  Qb6 {[%clk 0:02:28]} 12. Bb3 {[%clk 0:02:14]}  Bd7 {[%clk 0:02:24]} 13. e4 {[%clk 0:01:58]}  Rad8 {[%clk 0:02:10]} 14. Be3 {[%clk 0:01:56]}  Qa5 {[%clk 0:02:09]} 15. Qg3 {[%clk 0:01:49]}  b5 {[%clk 0:01:58]} 16. e5 {[%clk 0:01:32]}  Nh5 {[%clk 0:01:54]} 17. Qg4 {[%clk 0:01:12]}  g6 {[%clk 0:01:53]} 18. f4 {[%clk 0:01:11]}  Ng7 {[%clk 0:01:36]} 19. Ne4 {[%clk 0:01:10]}  Nf5 {[%clk 0:01:35]} 20. Bf2 {[%clk 0:01:10]}  Qb4 {[%clk 0:01:33]} 21. Qf3 {[%clk 0:01:05]}  h5 {[%clk 0:01:23]} 22. Rac1 {[%clk 0:01:03]}  Nh4 {[%clk 0:01:08]} 23. Qe3 {[%clk 0:00:36]}  Nf5 {[%clk 0:01:06]} 24. Qf3 {[%clk 0:00:36]}  Be8 {[%clk 0:01:03]} 25. g3 {[%clk 0:00:33]}  Ncd4 {[%clk 0:01:00]} 26. Nxd4 {[%clk 0:00:33]}  Nxd4 {[%clk 0:01:01]} 27. Qe3 {[%clk 0:00:29]}  Nxb3 {[%clk 0:00:54]} 28. axb3 {[%clk 0:00:29]}  Rxd1+ {[%clk 0:00:53]} 29. Rxd1 {[%clk 0:00:30]}  Bc6 {[%clk 0:00:54]} 30. Nd6 {[%clk 0:00:31]}  Bd5 {[%clk 0:00:45]} 31. Rd4 {[%clk 0:00:29]}  Qc5 {[%clk 0:00:44]} 32. Qc3 {[%clk 0:00:27]}  Bxd6 {[%clk 0:00:41]} 33. exd6 {[%clk 0:00:25]}  Qxd6 {[%clk 0:00:42]} 34. Rd1 {[%clk 0:00:19]}  Qd7 {[%clk 0:00:42]} 35. Bd4 {[%clk 0:00:19]}  Bb7 {[%clk 0:00:39]} 36. Bh8 {[%clk 0:00:19]}  Qxd1+ {[%clk 0:00:31]} 37. Kf2 {[%clk 0:00:20]}  Qf3+ {[%clk 0:00:31]} 38. Qxf3 {[%clk 0:00:20]}  Bxf3 {[%clk 0:00:32]} 0-1


[Site "https://www.chess.com"]

[Event "Titled Tuesday Blitz January 31 Late 2023"]
[White "Aarav Dengla"]
[Black "Andreikin, Dmitry"]
[WhiteFideId "45059756"]
[BlackFideId "4158814"]
[WhiteElo "2343"]
[BlackElo "2729"]
[Result "0-1"]
[Round "01"]
[TimeControl "180+2"]
[Date "2023.01.31"]
[WhiteClock "0:01:41"]
[BlackClock "0:02:02"]

1. e4 {[%clk 0:02:57]}  c5 {[%clk 0:02:59]} 2. Nf3 {[%clk 0:02:56]}  e6 {[%clk 0:02:59]} 3. d4 {[%clk 0:02:56]}  cxd4 {[%clk 0:03:00]} 4. Nxd4 {[%clk 0:02:57]}  Nc6 {[%clk 0:03:01]} 5. Nc3 {[%clk 0:02:56]}  Qc7 {[%clk 0:03:01]} 6. Be3 {[%clk 0:02:55]}  a6 {[%clk 0:03:01]} 7. g4 {[%clk 0:02:55]}  b5 {[%clk 0:03:00]} 8. Nxc6 {[%clk 0:02:52]}  Qxc6 {[%clk 0:03:01]} 9. Qd2 {[%clk 0:02:52]}  b4 {[%clk 0:02:57]} 10. Ne2 {[%clk 0:02:52]}  Nf6 {[%clk 0:02:56]} 11. f3 {[%clk 0:02:50]}  d5 {[%clk 0:02:55]} 12. e5 {[%clk 0:02:50]}  Nd7 {[%clk 0:02:55]} 13. Nd4 {[%clk 0:02:51]}  Qc7 {[%clk 0:02:53]} 14. f4 {[%clk 0:02:51]}  Nc5 {[%clk 0:02:51]} 15. Bg2 {[%clk 0:02:50]}  a5 {[%clk 0:02:48]} 16. c4 {[%clk 0:02:20]}  bxc3 {[%clk 0:02:37]} 17. Qxc3 {[%clk 0:02:16]}  Ba6 {[%clk 0:02:37]} 18. Kf2 {[%clk 0:02:10]}  Nd3+ {[%clk 0:02:19]} 19. Kf3 {[%clk 0:02:06]}  Qxc3 {[%clk 0:02:13]} 20. bxc3 {[%clk 0:02:07]}  g5 {[%clk 0:02:12]} 21. fxg5 {[%clk 0:01:55]}  Nxe5+ {[%clk 0:02:09]} 22. Kg3 {[%clk 0:01:54]}  Nd3 {[%clk 0:02:05]} 23. h4 {[%clk 0:01:50]}  Bd6+ {[%clk 0:02:04]} 24. Kh3 {[%clk 0:01:50]}  Rc8 {[%clk 0:02:04]} 25. Rab1 {[%clk 0:01:49]}  Rxc3 {[%clk 0:02:02]} 26. Rb6 {[%clk 0:01:41]}  Nf2# {[%clk 0:02:02]} 0-1


[Site "https://www.chess.com"]

[Event "Titled Tuesday Blitz January 31 Late 2023"]
[White "Mendez Fortes, Eduardo Jesus"]
[Black "Duda, Jan-Krzysztof"]
[WhiteFideId "3502376"]
[BlackFideId "1170546"]
[WhiteElo "2250"]
[BlackElo "2724"]
[Result "0-1"]
[Round "01"]
[TimeControl "180+2"]
[Date "2023.01.31"]
[WhiteClock "0:01:03"]
[BlackClock "0:01:39"]

1. e4 {[%clk 0:02:58]}  Nf6 {[%clk 0:02:58]} 2. e5 {[%clk 0:02:58]}  Nd5 {[%clk 0:02:59]} 3. d4 {[%clk 0:02:59]}  d6 {[%clk 0:02:59]} 4. Nf3 {[%clk 0:03:00]}  dxe5 {[%clk 0:02:59]} 5. Nxe5 {[%clk 0:03:01]}  c6 {[%clk 0:02:59]} 6. Bc4 {[%clk 0:03:00]}  Nd7 {[%clk 0:02:53]} 7. Nd3 {[%clk 0:02:59]}  g6 {[%clk 0:02:50]} 8. O-O {[%clk 0:02:58]}  Bg7 {[%clk 0:02:50]} 9. c3 {[%clk 0:02:58]}  O-O {[%clk 0:02:51]} 10. a4 {[%clk 0:02:58]}  b6 {[%clk 0:02:48]} 11. a5 {[%clk 0:02:57]}  Bb7 {[%clk 0:02:40]} 12. Bxd5 {[%clk 0:02:53]}  cxd5 {[%clk 0:02:39]} 13. Re1 {[%clk 0:02:52]}  Re8 {[%clk 0:02:37]} 14. Bf4 {[%clk 0:02:51]}  Qc8 {[%clk 0:02:28]} 15. Nd2 {[%clk 0:02:48]}  f6 {[%clk 0:02:27]} 16. Nf3 {[%clk 0:02:38]}  Qc4 {[%clk 0:02:23]} 17. Ra4 {[%clk 0:01:54]}  Qb5 {[%clk 0:02:15]} 18. Rb4 {[%clk 0:01:46]}  Qxa5 {[%clk 0:02:11]} 19. Qe2 {[%clk 0:01:46]}  e6 {[%clk 0:02:04]} 20. Nc1 {[%clk 0:01:38]}  Qa6 {[%clk 0:01:58]} 21. Qc2 {[%clk 0:01:35]}  Bc6 {[%clk 0:01:58]} 22. c4 {[%clk 0:01:32]}  Rac8 {[%clk 0:01:56]} 23. Bd6 {[%clk 0:01:19]}  dxc4 {[%clk 0:01:53]} 24. Rxc4 {[%clk 0:01:13]}  Bxf3 {[%clk 0:01:51]} 25. Rxc8 {[%clk 0:01:06]}  Rxc8 {[%clk 0:01:52]} 26. Qb3 {[%clk 0:01:06]}  Bd5 {[%clk 0:01:52]} 27. Qh3 {[%clk 0:01:06]}  Qc4 {[%clk 0:01:47]} 28. Nd3 {[%clk 0:01:06]}  Qxd4 {[%clk 0:01:42]} 29. Nf4 {[%clk 0:01:06]}  Qd2 {[%clk 0:01:39]} 30. Ra1 {[%clk 0:01:03]}  Rc1+ {[%clk 0:01:39]} 0-1


[Site "https://www.chess.com"]

[Event "Titled Tuesday Blitz January 31 Late 2023"]
[White "Jobava, Baadur"]
[Black "Fiorito, Francisco"]
[WhiteFideId "13601520"]
[BlackFideId "180165"]
[WhiteElo "2578"]
[BlackElo "2305"]
[Result "1-0"]
[Round "01"]
[TimeControl "180+2"]
[Date "2023.01.31"]
[WhiteClock "0:01:36"]
[BlackClock "0:00:21"]

1. d4 {[%clk 0:03:00]}  Nf6 {[%clk 0:02:59]} 2. Nc3 {[%clk 0:03:01]}  g6 {[%clk 0:02:54]} 3. e4 {[%clk 0:03:00]}  d6 {[%clk 0:02:54]} 4. Be2 {[%clk 0:03:01]}  Bg7 {[%clk 0:02:54]} 5. h4 {[%clk 0:03:02]}  h5 {[%clk 0:02:54]} 6. Nf3 {[%clk 0:03:02]}  Nbd7 {[%clk 0:02:53]} 7. Bg5 {[%clk 0:03:01]}  c6 {[%clk 0:02:48]} 8. e5 {[%clk 0:02:59]}  dxe5 {[%clk 0:02:47]} 9. dxe5 {[%clk 0:03:00]}  Ng4 {[%clk 0:02:48]} 10. e6 {[%clk 0:03:00]}  fxe6 {[%clk 0:02:46]} 11. O-O {[%clk 0:03:00]}  O-O {[%clk 0:02:40]} 12. Bc4 {[%clk 0:02:47]}  Ndf6 {[%clk 0:02:35]} 13. Qe2 {[%clk 0:02:44]}  Nd5 {[%clk 0:02:31]} 14. Rad1 {[%clk 0:02:43]}  Qc7 {[%clk 0:02:29]} 15. g3 {[%clk 0:02:27]}  Bd7 {[%clk 0:01:53]} 16. Ne4 {[%clk 0:02:22]}  Rf5 {[%clk 0:01:50]} 17. Nd4 {[%clk 0:02:15]}  Re5 {[%clk 0:00:52]} 18. f4 {[%clk 0:02:06]}  Nde3 {[%clk 0:00:29]} 19. fxe5 {[%clk 0:02:01]}  Nxc4 {[%clk 0:00:29]} 20. Qxc4 {[%clk 0:01:58]}  Qxe5 {[%clk 0:00:28]} 21. Nf3 {[%clk 0:01:57]}  Qc7 {[%clk 0:00:26]} 22. Bf4 {[%clk 0:01:53]}  Qb6+ {[%clk 0:00:24]} 23. Qc5 {[%clk 0:01:54]}  Be8 {[%clk 0:00:21]} 24. Qxb6 {[%clk 0:01:53]}  axb6 {[%clk 0:00:22]} 25. b3 {[%clk 0:01:48]}  e5 {[%clk 0:00:21]} 26. Bg5 {[%clk 0:01:44]}  Bf7 {[%clk 0:00:22]} 27. Bxe7 {[%clk 0:01:42]}  Ne3 {[%clk 0:00:22]} 28. Nf6+ {[%clk 0:01:35]}  Bxf6 {[%clk 0:00:20]} 29. Bxf6 {[%clk 0:01:36]}  Nxd1 {[%clk 0:00:21]} 30. Rxd1 {[%clk 0:01:37]}  e4 {[%clk 0:00:21]} 31. Ng5 {[%clk 0:01:36]}  Bd5 {[%clk 0:00:21]} 32. c4 {[%clk 0:01:36]}  Bf7 {[%clk 0:00:21]} 33. Rd7 {[%clk 0:01:36]} 1-0


[Site "https://www.chess.com"]

[Event "Titled Tuesday Blitz January 31 Late 2023"]
[White "Martinez Alcantara, Jose Eduardo"]
[Black "Graif, William"]
[WhiteFideId "3805662"]
[BlackFideId "2609835"]
[WhiteElo "2619"]
[BlackElo "2304"]
[Result "1-0"]
[Round "01"]
[TimeControl "180+2"]
[Date "2023.01.31"]
[WhiteClock "0:01:18"]
[BlackClock "0:00:01"]

1. e4 {[%clk 0:03:00]}  e5 {[%clk 0:02:54]} 2. Nf3 {[%clk 0:03:01]}  Bc5 {[%clk 0:02:53]} 3. c3 {[%clk 0:02:58]}  d5 {[%clk 0:02:50]} 4. exd5 {[%clk 0:02:51]}  Nf6 {[%clk 0:02:50]} 5. Bb5+ {[%clk 0:02:46]}  c6 {[%clk 0:02:39]} 6. dxc6 {[%clk 0:02:41]}  bxc6 {[%clk 0:02:39]} 7. d4 {[%clk 0:02:28]}  exd4 {[%clk 0:02:18]} 8. Be2 {[%clk 0:02:27]}  dxc3 {[%clk 0:02:05]} 9. Qxd8+ {[%clk 0:02:27]}  Kxd8 {[%clk 0:02:06]} 10. Nxc3 {[%clk 0:02:28]}  h6 {[%clk 0:01:46]} 11. O-O {[%clk 0:02:27]}  Ke7 {[%clk 0:01:46]} 12. Bc4 {[%clk 0:02:24]}  Rd8 {[%clk 0:01:30]} 13. Ne5 {[%clk 0:02:14]}  Be6 {[%clk 0:01:19]} 14. Bxe6 {[%clk 0:02:10]}  Kxe6 {[%clk 0:01:14]} 15. Re1 {[%clk 0:02:10]}  Kf5 {[%clk 0:01:02]} 16. h3 {[%clk 0:02:10]}  h5 {[%clk 0:00:56]} 17. Nxf7 {[%clk 0:02:03]}  Re8 {[%clk 0:00:43]} 18. Rxe8 {[%clk 0:01:55]}  Nxe8 {[%clk 0:00:44]} 19. Ng5 {[%clk 0:01:51]}  Nd7 {[%clk 0:00:41]} 20. Nf3 {[%clk 0:01:51]}  Nef6 {[%clk 0:00:41]} 21. Bd2 {[%clk 0:01:48]}  Re8 {[%clk 0:00:36]} 22. Kf1 {[%clk 0:01:48]}  Nb6 {[%clk 0:00:35]} 23. b3 {[%clk 0:01:46]}  Nbd5 {[%clk 0:00:35]} 24. Rc1 {[%clk 0:01:42]}  Bb6 {[%clk 0:00:23]} 25. Nh4+ {[%clk 0:01:32]}  Ke6 {[%clk 0:00:20]} 26. Re1+ {[%clk 0:01:33]}  Kf7 {[%clk 0:00:17]} 27. Rxe8 {[%clk 0:01:33]}  Nxe8 {[%clk 0:00:16]} 28. Ne4 {[%clk 0:01:31]}  Nef6 {[%clk 0:00:16]} 29. Ng5+ {[%clk 0:01:30]}  Ke7 {[%clk 0:00:15]} 30. Nf5+ {[%clk 0:01:30]}  Kf8 {[%clk 0:00:15]} 31. Ne6+ {[%clk 0:01:31]}  Kf7 {[%clk 0:00:14]} 32. Ng5+ {[%clk 0:01:24]}  Kg8 {[%clk 0:00:12]} 33. Ke2 {[%clk 0:01:24]}  g6 {[%clk 0:00:10]} 34. Nh4 {[%clk 0:01:21]}  Kg7 {[%clk 0:00:09]} 35. Ne6+ {[%clk 0:01:22]}  Kf7 {[%clk 0:00:09]} 36. Ng5+ {[%clk 0:01:23]}  Kg7 {[%clk 0:00:09]} 37. Nhf3 {[%clk 0:01:24]}  Ne7 {[%clk 0:00:08]} 38. Bc3 {[%clk 0:01:22]}  Nd5 {[%clk 0:00:07]} 39. Bb2 {[%clk 0:01:23]}  Kf8 {[%clk 0:00:07]} 40. Bxf6 {[%clk 0:01:22]}  Nxf6 {[%clk 0:00:07]} 41. Ne5 {[%clk 0:01:23]}  Kg7 {[%clk 0:00:05]} 42. Ne6+ {[%clk 0:01:21]}  Kh7 {[%clk 0:00:03]} 43. Nxc6 {[%clk 0:01:22]}  Nd5 {[%clk 0:00:03]} 44. a4 {[%clk 0:01:16]}  Nc3+ {[%clk 0:00:01]} 45. Kf3 {[%clk 0:01:17]}  Nd1 {[%clk 0:00:01]} 46. a5 {[%clk 0:01:18]}  Bxf2 {[%clk 0:00:01]} 47. Ke2 {[%clk 0:01:18]} 1-0


[Site "https://www.chess.com"]

[Event "Titled Tuesday Blitz January 31 Late 2023"]
[White "Krishnan, Varun"]
[Black "Deac, Bogdan-Daniel"]
[WhiteFideId "5054508"]
[BlackFideId "1226380"]
[WhiteElo "2341"]
[BlackElo "2700"]
[Result "0-1"]
[Round "01"]
[TimeControl "180+2"]
[Date "2023.01.31"]
[WhiteClock "0:00:11"]
[BlackClock "0:00:06"]

1. e4 {[%clk 0:02:55]}  g6 {[%clk 0:03:00]} 2. d4 {[%clk 0:02:54]}  Bg7 {[%clk 0:03:00]} 3. Nc3 {[%clk 0:02:50]}  d6 {[%clk 0:03:01]} 4. Be3 {[%clk 0:02:48]}  Nc6 {[%clk 0:03:00]} 5. Qd2 {[%clk 0:02:47]}  e5 {[%clk 0:03:00]} 6. Nge2 {[%clk 0:02:46]}  Nf6 {[%clk 0:02:48]} 7. f3 {[%clk 0:02:45]}  h5 {[%clk 0:02:47]} 8. O-O-O {[%clk 0:02:43]}  O-O {[%clk 0:02:47]} 9. Kb1 {[%clk 0:02:43]}  a6 {[%clk 0:02:47]} 10. Bh6 {[%clk 0:02:38]}  b5 {[%clk 0:02:38]} 11. Bxg7 {[%clk 0:02:35]}  Kxg7 {[%clk 0:02:38]} 12. Nd5 {[%clk 0:02:32]}  Bb7 {[%clk 0:02:26]} 13. h3 {[%clk 0:02:23]}  h4 {[%clk 0:02:18]} 14. g3 {[%clk 0:02:15]}  hxg3 {[%clk 0:02:12]} 15. Nxg3 {[%clk 0:02:16]}  Rh8 {[%clk 0:02:04]} 16. dxe5 {[%clk 0:01:52]}  Nxe5 {[%clk 0:01:55]} 17. Be2 {[%clk 0:01:51]}  Bxd5 {[%clk 0:01:49]} 18. exd5 {[%clk 0:01:50]}  Qe7 {[%clk 0:01:49]} 19. Qg5 {[%clk 0:01:38]}  Kf8 {[%clk 0:01:48]} 20. f4 {[%clk 0:01:37]}  Ned7 {[%clk 0:01:41]} 21. Rde1 {[%clk 0:01:22]}  Ng8 {[%clk 0:01:15]} 22. Qg4 {[%clk 0:01:19]}  Re8 {[%clk 0:01:09]} 23. a3 {[%clk 0:01:02]}  Rh4 {[%clk 0:01:02]} 24. Qf3 {[%clk 0:01:02]}  Qf6 {[%clk 0:01:02]} 25. f5 {[%clk 0:00:59]}  g5 {[%clk 0:00:53]} 26. Ref1 {[%clk 0:00:40]}  Ne5 {[%clk 0:00:46]} 27. Qf2 {[%clk 0:00:35]}  Nc4 {[%clk 0:00:21]} 28. Bxc4 {[%clk 0:00:35]}  bxc4 {[%clk 0:00:22]} 29. c3 {[%clk 0:00:30]}  Rf4 {[%clk 0:00:16]} 30. Qd2 {[%clk 0:00:27]}  Rxf1+ {[%clk 0:00:08]} 31. Rxf1 {[%clk 0:00:28]}  Qh6 {[%clk 0:00:08]} 32. Qg2 {[%clk 0:00:23]}  Nf6 {[%clk 0:00:07]} 33. Ne2 {[%clk 0:00:19]}  Re3 {[%clk 0:00:07]} 34. Nd4 {[%clk 0:00:18]}  Qxh3 {[%clk 0:00:05]} 35. Qf2 {[%clk 0:00:14]}  Ne4 {[%clk 0:00:05]} 36. Qg1 {[%clk 0:00:11]}  Qxf1+ {[%clk 0:00:05]} 37. Qxf1 {[%clk 0:00:11]}  Nd2+ {[%clk 0:00:06]} 0-1


[Site "https://www.chess.com"]

[Event "Titled Tuesday Blitz January 31 Late 2023"]
[White "Bluebaum, Matthias"]
[Black "Ozates, Tuna"]
[WhiteFideId "24651516"]
[BlackFideId "6354521"]
[WhiteElo "2669"]
[BlackElo "2251"]
[Result "1-0"]
[Round "01"]
[TimeControl "180+2"]
[Date "2023.01.31"]
[WhiteClock "0:00:18"]
[BlackClock "0:00:06"]

1. d4 {[%clk 0:03:00]}  Nf6 {[%clk 0:02:59]} 2. c4 {[%clk 0:02:59]}  e6 {[%clk 0:03:00]} 3. Nc3 {[%clk 0:03:00]}  d5 {[%clk 0:02:59]} 4. cxd5 {[%clk 0:03:01]}  exd5 {[%clk 0:03:00]} 5. Bg5 {[%clk 0:03:01]}  Be7 {[%clk 0:03:00]} 6. e3 {[%clk 0:03:02]}  c6 {[%clk 0:02:59]} 7. Bd3 {[%clk 0:03:02]}  Nbd7 {[%clk 0:02:59]} 8. h3 {[%clk 0:03:03]}  O-O {[%clk 0:02:55]} 9. Qc2 {[%clk 0:03:02]}  Re8 {[%clk 0:02:54]} 10. Nf3 {[%clk 0:03:03]}  Nf8 {[%clk 0:02:52]} 11. O-O {[%clk 0:03:02]}  Ng6 {[%clk 0:02:50]} 12. Ne5 {[%clk 0:03:02]}  Ne4 {[%clk 0:02:45]} 13. Bxe7 {[%clk 0:02:56]}  Qxe7 {[%clk 0:02:45]} 14. Nxe4 {[%clk 0:02:53]}  dxe4 {[%clk 0:02:30]} 15. Bxe4 {[%clk 0:02:51]}  Nxe5 {[%clk 0:02:31]} 16. dxe5 {[%clk 0:02:48]}  Qxe5 {[%clk 0:02:16]} 17. Bxh7+ {[%clk 0:02:47]}  Kh8 {[%clk 0:02:17]} 18. Bd3 {[%clk 0:02:48]}  Qg5 {[%clk 0:02:04]} 19. f4 {[%clk 0:02:42]}  Qf6 {[%clk 0:01:56]} 20. Qf2 {[%clk 0:02:39]}  Bf5 {[%clk 0:01:54]} 21. Rad1 {[%clk 0:02:28]}  Bxd3 {[%clk 0:01:53]} 22. Rxd3 {[%clk 0:02:29]}  Re4 {[%clk 0:01:50]} 23. Rd7 {[%clk 0:02:23]}  Rae8 {[%clk 0:01:49]} 24. Re1 {[%clk 0:02:02]}  b5 {[%clk 0:01:34]} 25. Rxa7 {[%clk 0:01:51]}  Kg8 {[%clk 0:01:33]} 26. a3 {[%clk 0:01:35]}  Qd6 {[%clk 0:01:27]} 27. Qc2 {[%clk 0:01:25]}  g6 {[%clk 0:01:06]} 28. Ra8 {[%clk 0:01:21]}  Qe6 {[%clk 0:00:47]} 29. Rxe8+ {[%clk 0:01:20]}  Qxe8 {[%clk 0:00:46]} 30. Qd3 {[%clk 0:01:20]}  Qe6 {[%clk 0:00:43]} 31. Kf2 {[%clk 0:01:16]}  Rc4 {[%clk 0:00:41]} 32. Re2 {[%clk 0:01:14]}  Qf6 {[%clk 0:00:41]} 33. Rc2 {[%clk 0:01:12]}  Qh4+ {[%clk 0:00:39]} 34. Kf1 {[%clk 0:01:08]}  Rxc2 {[%clk 0:00:35]} 35. Qxc2 {[%clk 0:01:09]}  Qf6 {[%clk 0:00:34]} 36. Qc3 {[%clk 0:01:06]}  Qd6 {[%clk 0:00:33]} 37. Qd4 {[%clk 0:01:06]}  Qe6 {[%clk 0:00:32]} 38. Kf2 {[%clk 0:00:58]}  Qb3 {[%clk 0:00:31]} 39. Kg3 {[%clk 0:00:57]}  Qc2 {[%clk 0:00:28]} 40. Kh2 {[%clk 0:00:55]}  c5 {[%clk 0:00:18]} 41. Qc3 {[%clk 0:00:52]}  Qf5 {[%clk 0:00:17]} 42. b3 {[%clk 0:00:50]}  Qd5 {[%clk 0:00:16]} 43. a4 {[%clk 0:00:50]}  b4 {[%clk 0:00:15]} 44. Qc2 {[%clk 0:00:48]}  Qc6 {[%clk 0:00:08]} 45. a5 {[%clk 0:00:45]}  Qb5 {[%clk 0:00:09]} 46. Qa2 {[%clk 0:00:41]}  Qa6 {[%clk 0:00:09]} 47. Qa4 {[%clk 0:00:38]}  Kg7 {[%clk 0:00:08]} 48. Qa1+ {[%clk 0:00:37]}  Kg8 {[%clk 0:00:08]} 49. h4 {[%clk 0:00:32]}  Kh7 {[%clk 0:00:06]} 50. Kg3 {[%clk 0:00:24]}  Kg8 {[%clk 0:00:06]} 51. Qa4 {[%clk 0:00:22]}  Kg7 {[%clk 0:00:05]} 52. Qa2 {[%clk 0:00:20]}  Kg8 {[%clk 0:00:05]} 53. Qa1 {[%clk 0:00:20]}  Kh7 {[%clk 0:00:04]} 54. e4 {[%clk 0:00:19]}  Qd3+ {[%clk 0:00:03]} 55. Kh2 {[%clk 0:00:20]}  Qxe4 {[%clk 0:00:03]} 56. Qf6 {[%clk 0:00:17]}  Qe6 {[%clk 0:00:02]} 57. Qxe6 {[%clk 0:00:17]}  fxe6 {[%clk 0:00:03]} 58. a6 {[%clk 0:00:18]}  c4 {[%clk 0:00:04]} 59. a7 {[%clk 0:00:17]}  cxb3 {[%clk 0:00:02]} 60. a8=Q {[%clk 0:00:18]}  b2 {[%clk 0:00:02]} 61. Qb7+ {[%clk 0:00:19]}  Kh6 {[%clk 0:00:02]} 62. Qxb4 {[%clk 0:00:19]}  Kh5 {[%clk 0:00:03]} 63. Qxb2 {[%clk 0:00:20]}  e5 {[%clk 0:00:03]} 64. Qxe5+ {[%clk 0:00:20]}  Kh6 {[%clk 0:00:03]} 65. Qg5+ {[%clk 0:00:20]}  Kh7 {[%clk 0:00:04]} 66. h5 {[%clk 0:00:20]}  Kh8 {[%clk 0:00:05]} 67. hxg6 {[%clk 0:00:18]}  Kg8 {[%clk 0:00:05]} 68. f5 {[%clk 0:00:19]}  Kh8 {[%clk 0:00:05]} 69. f6 {[%clk 0:00:19]}  Kg8 {[%clk 0:00:06]} 70. Qe5 {[%clk 0:00:18]}  Kf8 {[%clk 0:00:06]} 71. Qe7+ {[%clk 0:00:18]} 1-0


[Site "https://www.chess.com"]